[Event "Croatian junior league 2021"]
[Site "Rabac"]
[Date "2021.04.06"]
[Round "1.54"]
[White "Dumancic, Simun"]
[Black "Zekic, Patrik"]
[Result "0-1"]
[ECO "C06"]
[WhiteElo "1883"]
[BlackElo "1731"]
[Annotator "NA"]
[PlyCount "62"]
[EventDate "2021.04.06"]
[EventType "swiss"]
[EventCountry "CRO"]
[SourceTitle "playchess.com"]
[Source "ChessBase"]
[SourceQuality "1"]
[TimeControl "5400+30"]

1. e4 {[%emt 0:00:30]} e6 {[%emt 0:01:30]} 2. d4 {[%emt 0:00:00]} d5 {[%emt 0:00:30]} 3. Nd2 {[%emt 0:00:00]} Be7 {[%emt 0:00:30]} 4. Ngf3 {[%emt 0:03:30]} Nf6 {[%emt 0:02:30]} 5. e5 {[%emt 0:01:30]} Nfd7 {[%emt 0:00:00]} 6. Bd3 {[%emt 0:01:30]} c5 {[%emt 0:00:00]} 7. c3 {[%emt 0:00:30]} Nc6 {[%emt 0:00:30]} 8. O-O {[%emt 0:02:30]} g5 {[%emt 0:01:30]} 9. Bb5 {[%emt 0:12:30]} g4 {[%emt 0:32:30]} 10. Ne1 $1 {[%emt 0:03:30]} cxd4 {[%emt 0:09:30]} 11. Bxc6 {[%emt 0:00:00]} bxc6 {[%emt 0:00:30]} 12. cxd4 {[%emt 0:00:00]} Ba6 {[%emt 0:05:30]} 13. Qxg4 {[%emt 0:00:30]} Nf8 {[%emt 0:02:30]} 14. f4 {[%emt 0:20:30]} Bxf1 {[%emt 0:00:30]} 15. Kxf1 {[%emt 0:02:30]} h5 $11 {[%emt 0:04:30]} (15... Qb6 $17 16. Nb3 a5) 16. Qf3 {[%emt 0:08:30]} Ng6 {[%emt 0:03:30]} 17. Nb3 {[%emt 0:06:30]} Qb6 {[%emt 0:06:30]} 18. Bd2 {[%emt 0:04:30]} a5 {[%emt 0:07:27]} 19. Bc3 {[%emt 0:09:30]} a4 {[%emt 0:01:30]} 20. Nc1 {[%emt 0:01:30]} Nh4 {[%emt 0:01:13]} 21. Qf2 {[%emt 0:00:30]} Nf5 {[%emt 0:00:19]} 22. Ncd3 {[%emt 0:00:43]} Rc8 {[%emt 0:01:25]} 23. Nf3 {[%emt 0:03:51]} c5 {[%emt 0:02:42]} 24. Rd1 {[%emt 0:03:13]} c4 {[%emt 0:04:28]} 25. Nc1 {[%emt 0:01:02]} a3 {[%emt 0:01:10]} 26. bxa3 {[%emt 0:01:00]} Bxa3 {[%emt 0:00:23]} 27. Nh4 {[%emt 0:00:26]} Qb1 {[%emt 0:01:40]} 28. Nxf5 {[%emt 0:01:10]} Qxf5 {[%emt 0:00:14]} 29. Ne2 {[%emt 0:01:07]} Qc2 {[%emt 0:02:04]} 30. Re1 {[%emt 0:01:05]} h4 {[%emt 0:00:24]} 31. f5 {[%emt 0:01:20]} Rh5 {[%emt 0:06:38]} 0-1

[Event "Croatian junior league 2021"]
[Site "Rabac"]
[Date "2021.04.06"]
[Round "1.61"]
[White "Begic, Domagoj"]
[Black "Novosel, Marko"]
[Result "0-1"]
[ECO "D02"]
[WhiteElo "1706"]
[BlackElo "2130"]
[Annotator "ChessBase"]
[PlyCount "63"]
[EventDate "2021.04.06"]
[EventType "swiss"]
[EventCountry "CRO"]
[SourceTitle "playchess.com"]
[Source "ChessBase"]
[SourceQuality "1"]
[TimeControl "5400+30"]

1. d4 {[%emt 0:00:30]} Nf6 {[%emt 0:00:30]} 2. g3 {[%emt 0:00:00]} d5 {[%emt 0:00:30]} 3. Bg2 {[%emt 0:00:00]} e6 {[%emt 0:03:30]} 4. Nf3 {[%emt 0:02:30]} c5 {[%emt 0:03:30]} 5. c3 {[%emt 0:01:30]} cxd4 {[%emt 0:02:30]} 6. cxd4 {[%emt 0:00:30]} Bd6 {[%emt 0:09:30]} 7. a3 {[%emt 0:08:30]} O-O {[%emt 0:05:30]} 8. O-O {[%emt 0:00:00]} Nbd7 {[%emt 0:02:30]} 9. Nc3 {[%emt 0:04:00]} a6 {[%emt 0:03:30]} 10. Re1 {[%emt 0:05:30]} Be7 {[%emt 0:20:30]} 11. e3 {[%emt 0:13:30]} b5 {[%emt 0:05:30]} 12. b4 {[%emt 0:08:30]} Bb7 {[%emt 0:00:30]} 13. Bb2 {[%emt 0:00:30]} Rc8 {[%emt 0:06:30]} 14. Nd2 {[%emt 0:03:30]} Nb6 {[%emt 0:01:30]} 15. Rc1 {[%emt 0:04:30]} Nc4 {[%emt 0:03:30]} 16. Nxc4 {[%emt 0:03:30]} Rxc4 {[%emt 0:00:00]} 17. Qb3 {[%emt 0:06:30]} Qa8 {[%emt 0:08:00]} 18. Bf1 {[%emt 0:05:30]} h5 {[%emt 0:02:24]} 19. Qd1 {[%emt 0:10:30]} h4 {[%emt 0:02:31]} 20. Bd3 {[%emt 0:02:16]} hxg3 {[%emt 0:00:49]} 21. hxg3 {[%emt 0:00:29]} g6 {[%emt 0:00:32]} 22. Kg2 {[%emt 0:00:50]} Rcc8 {[%emt 0:01:51]} 23. Rh1 {[%emt 0:00:28]} e5 {[%emt 0:06:23]} 24. Rh3 {[%emt 0:03:37]} e4 {[%emt 0:01:48]} 25. Be2 {[%emt 0:00:35]} Kg7 {[%emt 0:00:15]} 26. Qd2 {[%emt 0:01:17]} Rh8 {[%emt 0:01:00]} 27. Rch1 {[%emt 0:00:15]} Rxh3 {[%emt 0:05:16]} 28. Rxh3 {[%emt 0:00:12]} Rh8 {[%emt 0:01:54]} 29. Rxh8 {[%emt 0:01:10]} Qxh8 {[%emt 0:00:06]} 30. Qd1 {[%emt 0:00:10]} Bc8 {[%emt 0:00:22]} 31. Qh1 {[%emt 0:00:15]} Qd8 {[%emt 0:00:03]} 32. Nb1 {[%emt 0:14:56]} 0-1